bitfinex/quotes_BTCUSD_20251124
["timestamp","ask_amount","ask_price","bid_price","bid_amount"]
[1763969103608,0.02208,87069.0,87059.0,0.002]
[1763969103785,0.16353936,87069.0,87059.0,0.001]
[1763969103985,0.0279,87060.0,87059.0,0.001]
[1763969104560,0.07167,87060.0,87058.0,0.001]
[1763969104850,0.05,87058.0,87043.0,0.02214]
[1763969105049,0.323,87055.0,87043.0,0.02214]
[1763969105735,0.36677,87055.0,87043.0,0.02214]
[1763969106338,0.36677,87055.0,87046.0,0.00036951]
[1763969106639,0.04811,87047.0,87046.0,0.00036951]
[1763969107014,0.41488,87047.0,87046.0,0.00036951]
[1763969107338,0.34321,87047.0,87046.0,0.00036951]
[1763969107701,0.37111,87047.0,87046.0,0.00036951]
[1763969107939,0.41488,87047.0,87046.0,0.00036951]
[1763969108170,0.04811,87047.0,87046.0,0.00036951]
[1763969108470,0.02021,87047.0,87046.0,0.00036951]
[1763969108670,0.04811,87047.0,87046.0,0.00036951]
[1763969109007,0.08266852,87047.0,87046.0,0.00036951]
[1763969109630,0.12643852,87047.0,87046.0,0.00036951]
[1763969110170,0.17643852,87047.0,87046.0,0.00036951]
[1763969111750,0.0490003,87047.0,87046.0,0.00036951]
[1763969112120,0.0345598,87049.0,87046.0,0.00036951]
[1763969112358,0.323,87047.0,87046.0,0.00036951]
[1763969112784,0.323,87047.0,87046.0,0.07550951]
[1763969113706,0.45524669,87055.0,87046.0,0.07550951]
[1763969114004,0.45524669,87055.0,87046.0,0.03022951]
[1763969114005,0.42068936,87055.0,87046.0,0.03022951]
[1763969114641,0.42068936,87055.0,87046.0,0.03122951]
[1763969115157,0.42068936,87055.0,87046.0,0.03222951]
[1763969115747,0.42068936,87055.0,87046.0,0.03122951]
[1763969116309,0.323,87051.0,87046.0,0.00136951]
[1763969116455,0.42068936,87055.0,87046.0,0.00136951]
[1763969116657,0.323,87053.0,87046.0,0.00136951]
[1763969117029,0.42068936,87055.0,87046.0,0.00136951]
[1763969117235,2.0,87052.0,87046.0,0.00136951]
[1763969117383,0.323,87049.0,87046.0,0.00036951]
[1763969118902,0.42068936,87055.0,87048.0,0.02944]
[1763969119109,0.323,87051.0,87048.0,0.02944]
[1763969119322,0.323,87049.0,87048.0,0.02944]
[1763969120511,0.09768936,87055.0,87048.0,0.07312]
[1763969120512,0.323,87055.0,87048.0,0.07312]
[1763969121007,0.5952529,87058.0,87046.0,0.00036951]
[1763969121008,0.01,87050.0,87046.0,0.00036951]
[1763969121267,0.09768936,87054.0,87046.0,0.00036951]
[1763969121268,2.3720003,87047.0,87046.0,0.00036951]
[1763969122045,2.323,87047.0,87046.0,0.00036951]
[1763969123558,2.333,87047.0,87046.0,0.00036951]
[1763969123974,2.13732947,87047.0,87046.0,0.00036951]
[1763969126374,2.12732947,87047.0,87046.0,0.00036951]
[1763969126812,2.12732947,87047.0,87046.0,0.02980951]
[1763969126975,2.12732947,87047.0,87046.0,0.07248951]
[1763969127179,0.323,87047.0,87046.0,0.07248951]
[1763969127438,2.0,87052.0,87046.0,0.07248951]
[1763969127635,2.0,87052.0,87047.0,0.04268]
[1763969127848,2.0,87057.0,87046.0,0.00036951]
[1763969128041,0.323,87047.0,87046.0,0.00036951]
[1763969128216,2.323,87047.0,87046.0,0.00036951]
[1763969128536,2.3720003,87047.0,87046.0,0.00036951]
[1763969128776,2.40656237,87047.0,87046.0,0.00036951]
[1763969129168,2.35756207,87047.0,87046.0,0.00036951]
[1763969130626,2.40656237,87047.0,87046.0,0.00036951]
[1763969133105,2.35756207,87047.0,87046.0,0.00036951]
[1763969133486,2.40656237,87047.0,87046.0,0.00036951]
[1763969134202,2.43132623,87047.0,87046.0,0.00036951]
[1763969137112,2.02476386,87047.0,87046.0,0.02918951]
[1763969137316,2.0,87055.0,87046.0,0.02918951]
[1763969137516,2.0,87049.0,87046.0,0.02918951]
[1763969137717,2.323,87047.0,87046.0,0.02918951]
[1763969138148,0.09768936,87055.0,87046.0,0.02918951]
[1763969138149,2.0,87054.0,87046.0,0.07399951]
[1763969138349,2.0,87054.0,87050.0,0.02882]
[1763969138550,0.323,87051.0,87050.0,0.02882]
[1763969138757,2.323,87051.0,87050.0,0.02882]
[1763969138964,0.323,87051.0,87050.0,0.02882]
[1763969139799,0.42068936,87055.0,87050.0,0.02882]
[1763969139949,0.42068936,87055.0,87050.0,0.07363]
[1763969140347,0.09768936,87055.0,87050.0,0.07363]
[1763969140547,0.09768936,87055.0,87050.0,0.02882]
[1763969140785,0.42068936,87055.0,87051.0,0.04481]
[1763969140989,0.323,87055.0,87054.0,0.02882]
[1763969141803,0.323,87055.0,87054.0,0.07363]
[1763969143287,0.323,87058.0,87054.0,0.02882]
[1763969143473,0.323,87056.0,87054.0,0.02882]
[1763969143811,0.323,87056.0,87055.0,0.04481]
[1763969143972,0.323,87056.0,87055.0,0.07363]
[1763969144354,0.09768936,87069.0,87055.0,0.07363]
[1763969144582,2.0,87077.0,87068.0,0.05184]
[1763969144797,0.87312631,87080.0,87078.0,0.05184]
[1763969144973,2.0,87087.0,87079.0,0.02882]
[1763969145636,0.323,87086.0,87079.0,0.02882]
[1763969145847,2.0,87085.0,87079.0,0.04295]
[1763969146023,0.00011771,87085.0,87079.0,0.04295]
[1763969146404,0.00011771,87085.0,87084.0,0.05147]
[1763969147153,0.00011771,87085.0,87084.0,0.09442]
[1763969147300,0.03605533,87098.0,87084.0,0.09442]
[1763969147301,0.5,87098.0,87084.0,0.09442]
[1763969147505,2.32339227,87098.0,87097.0,0.03048]
[1763969148628,2.32339227,87098.0,87097.0,0.05147]
[1763969150481,2.32339227,87098.0,87093.0,0.02099]
[1763969150482,0.323,87097.0,87093.0,0.02099]
[1763969150673,0.323,87095.0,87093.0,0.02099]
[1763969153212,0.00039227,87098.0,87094.0,0.03048]
[1763969153372,2.323,87095.0,87094.0,0.03048]
[1763969153555,0.323,87095.0,87094.0,0.03048]
[1763969154623,0.323,87095.0,87094.0,0.07343]
[1763969156690,0.323,87095.0,87094.0,0.07543]
[1763969156886,0.323,87095.0,87094.0,0.002]
[1763969157843,0.323,87094.0,87091.0,0.02099]
[1763969158428,0.323,87094.0,87093.0,0.03048]
[1763969158633,2.323,87094.0,87078.0,0.02302]
[1763969158950,0.01,87096.0,87073.0,0.02099]
[1763969158951,0.323,87084.0,87073.0,0.02099]
[1763969159256,0.323,87082.0,87073.0,0.02099]
[1763969161690,0.323,87080.0,87073.0,0.02099]
[1763969161894,0.323,87080.0,87060.0,0.02099]
[1763969161895,0.323,87080.0,87061.0,0.04295]
[1763969162514,0.323,87078.0,87061.0,0.04295]
[1763969163553,0.09768936,87086.0,87061.0,0.04295]
[1763969163762,0.323,87079.0,87068.0,0.06692]
[1763969164698,2.0,87078.0,87068.0,0.02302]
[1763969164861,0.323,87077.0,87060.0,0.06489]
[1763969165079,0.323,87069.0,87060.0,0.02099]
[1763969166385,0.323,87069.0,87060.0,0.02110771]
[1763969167981,2.0,87068.0,87060.0,0.02110771]
[1763969168188,0.323,87069.0,87060.0,0.02110771]
[1763969168530,0.323,87067.0,87060.0,0.02110771]
[1763969169137,0.323,87067.0,87066.0,0.02836]
[1763969169656,0.323,87067.0,87061.0,0.0439]
[1763969170026,0.323,87067.0,87060.0,0.00011771]
[1763969171273,0.323,87069.0,87060.0,0.00011771]
[1763969171486,0.323,87067.0,87060.0,0.00011771]
[1763969172358,0.323,87067.0,87061.0,0.0439]
[1763969172812,0.323,87067.0,87066.0,0.02836]
[1763969173956,0.323,87069.0,87066.0,0.07226]
[1763969174156,0.323,87067.0,87066.0,0.0439]
[1763969174359,2.323,87068.0,87067.0,0.0439]
[1763969174580,0.323,87068.0,87067.0,0.07226]
[1763969176569,0.87312631,87077.0,87067.0,0.07226]
[1763969176570,2.0,87076.0,87067.0,0.07226]
[1763969176798,2.323,87076.0,87075.0,0.02176]
[1763969177452,0.87312631,87085.0,87075.0,0.05012]
[1763969177635,2.0,87084.0,87075.0,0.05012]
[1763969177834,0.323,87081.0,87075.0,0.05012]
[1763969178157,0.323,87077.0,87076.0,0.0439]
[1763969178560,0.323,87077.0,87076.0,0.07226]
[1763969178766,0.87312631,87085.0,87076.0,0.07226]
[1763969178968,0.97081567,87100.0,87084.0,0.02836]
[1763969179194,0.97081567,87100.0,87090.0,0.02176]
[1763969179195,2.0,87099.0,87090.0,0.02176]
[1763969179549,0.01802658,87103.0,87099.0,0.09302]
[1763969179751,0.01802658,87103.0,87102.0,0.02836]
[1763969180129,0.01802658,87103.0,87102.0,0.07126]
[1763969180350,0.01841885,87103.0,87102.0,0.07126]
[1763969181122,0.01841885,87103.0,87102.0,0.02736]
[1763969182122,0.00039227,87103.0,87102.0,0.02736]
[1763969182437,0.00039227,87103.0,87102.0,0.07226]
[1763969185632,0.01841225,87103.0,87102.0,0.07226]
[1763969187904,0.01841225,87103.0,87102.0,0.02836]
[1763969188072,2.34141225,87103.0,87102.0,0.001]
[1763969188505,2.39041255,87103.0,87102.0,0.001]
[1763969188883,2.44251504,87103.0,87102.0,0.001]
[1763969189088,2.44251504,87103.0,87070.0,0.02176]
[1763969189089,0.323,87102.0,87076.0,0.0439]
[1763969189265,0.323,87085.0,87076.0,0.0439]
[1763969190772,0.323,87081.0,87076.0,0.001]
[1763969191121,0.0490003,87077.0,87076.0,0.001]
[1763969191267,0.42068936,87079.0,87076.0,0.001]
[1763969191471,0.42068936,87079.0,87078.0,0.02836]
[1763969191872,0.42068936,87079.0,87076.0,0.001]
[1763969191873,0.09768936,87079.0,87076.0,0.001]
[1763969192223,0.09768936,87079.0,87073.0,0.02176]
[1763969192522,0.09768936,87079.0,87076.0,0.001]
[1763969192724,0.09768936,87079.0,87073.0,0.02176]
[1763969193127,0.09768936,87079.0,87076.0,0.001]
[1763969193426,2.0,87082.0,87078.0,0.02836]
[1763969193582,0.323,87081.0,87078.0,0.02836]
[1763969193795,0.323,87081.0,87073.0,0.02176]
[1763969193796,0.42068936,87079.0,87073.0,0.02176]
[1763969195172,0.09768936,87079.0,87073.0,0.02176]
[1763969195522,0.09768936,87079.0,87065.0,0.02176]
[1763969195720,0.323,87074.0,87065.0,0.02176]
[1763969195922,0.0490003,87073.0,87065.0,0.02176]
[1763969196767,0.0490003,87073.0,87051.0,0.03939]
[1763969196768,0.323,87069.0,87051.0,0.03939]
[1763969196973,0.0490003,87066.0,87065.0,0.00011771]
[1763969197174,0.0490003,87066.0,87065.0,0.00111771]
[1763969197383,0.323,87067.0,87065.0,0.00011771]
[1763969197615,0.3720003,87067.0,87065.0,0.00011771]
[1763969197826,0.3720003,87067.0,87065.0,0.00111771]
[1763969198034,0.0490003,87067.0,87065.0,0.00111771]
[1763969198691,2.323,87066.0,87065.0,0.00111771]
[1763969199104,2.323,87066.0,87065.0,0.00011771]
[1763969199826,2.3720003,87066.0,87065.0,0.00011771]
[1763969200738,2.412877,87066.0,87065.0,0.00011771]
[1763969201420,0.22975936,87048.0,87022.0,0.03939]
[1763969201624,2.51030648,87047.0,87046.0,0.00036951]
[1763969202034,2.51056636,87047.0,87046.0,0.00036951]
[1763969203070,2.51156636,87047.0,87046.0,0.00036951]
[1763969204243,2.51056636,87047.0,87046.0,0.00036951]
[1763969204682,2.51156636,87047.0,87046.0,0.00036951]
[1763969204816,2.18856636,87047.0,87046.0,0.00036951]
[1763969205646,2.18856636,87047.0,87009.0,0.02052]
[1763969205647,0.05210249,87035.0,87011.0,0.02082]
[1763969205873,1.98851433,87023.0,87011.0,0.02093784]
[1763969206073,1.98851433,87020.0,87011.0,0.06255784]
[1763969206478,1.98851433,87020.0,87019.0,0.02598]
[1763969206717,0.0490003,87012.0,87011.0,0.00011784]
[1763969206929,2.36051463,87012.0,87011.0,0.00011784]
[1763969207644,2.36051463,87012.0,87011.0,0.00111784]
[1763969208070,2.59036798,87012.0,87011.0,0.00111784]
[1763969208277,2.41261712,87012.0,87011.0,0.00111784]
[1763969208898,2.41261712,87012.0,87011.0,0.00011784]
[1763969211014,2.31151433,87012.0,87011.0,0.00011784]
[1763969211920,2.36051463,87012.0,87011.0,0.00011784]
[1763969212077,2.17709896,87012.0,87011.0,0.00011784]
[1763969212282,2.12809866,87012.0,87011.0,0.00011784]
[1763969212722,2.12809866,87012.0,87011.0,0.00111784]
[1763969213739,2.17709896,87012.0,87011.0,0.00111784]
[1763969214396,2.12809866,87012.0,87011.0,0.00111784]
[1763969215041,2.12809866,87012.0,87011.0,0.00011784]
[1763969215243,2.20020115,87012.0,87011.0,0.00011784]
[1763969215887,2.20020115,87012.0,87011.0,0.00111784]
[1763969216551,2.20020115,87012.0,87011.0,0.00222019]
[1763969216888,2.14809866,87012.0,87011.0,0.00222019]
[1763969217092,2.12809866,87012.0,87011.0,0.00222019]
[1763969217282,2.12809866,87012.0,87011.0,0.02304019]
[1763969218098,2.12809866,87012.0,87011.0,0.00222019]
[1763969220934,2.12809866,87012.0,87011.0,0.09064019]
[1763969221201,0.323,87012.0,87011.0,0.09064019]
[1763969221527,0.09768936,87029.0,87011.0,0.09064019]
[1763969221732,2.0,87028.0,87012.0,0.04162]
[1763969222030,2.0,87021.0,87011.0,0.04791784]
[1763969222200,0.59621988,87022.0,87011.0,0.04791784]
[1763969222201,0.0490003,87017.0,87011.0,0.00111784]
[1763969222440,0.0490003,87012.0,87011.0,0.00111784]
[1763969222646,2.13311556,87012.0,87011.0,0.00111784]
[1763969222868,0.01148831,87045.0,87011.0,0.06771784]
[1763969223083,2.0,87027.0,87011.0,0.06771784]
[1763969223295,0.09868936,87029.0,87012.0,0.04162]
[1763969223296,2.0,87028.0,87012.0,0.04162]
[1763969223467,0.09868936,87029.0,87012.0,0.04162]
[1763969223468,0.323,87025.0,87012.0,0.04162]
[1763969223920,0.323,87025.0,87024.0,0.02029]
[1763969224698,0.323,87027.0,87024.0,0.02029]
[1763969224894,0.323,87025.0,87024.0,0.02029]
[1763969225102,2.0,87060.0,87024.0,0.04743]
[1763969225299,0.01803616,87067.0,87035.0,0.02029]
[1763969225300,0.59621988,87040.0,87035.0,0.02029]
[1763969225700,0.59621988,87040.0,87035.0,0.0636]
[1763969226110,0.323,87039.0,87036.0,0.04331]
[1763969226312,0.59621988,87040.0,87036.0,0.04331]
[1763969226540,0.59621988,87040.0,87038.0,0.02714]
[1763969226734,0.323,87039.0,87038.0,0.02714]
[1763969227749,0.323,87047.0,87038.0,0.02714]
[1763969227921,0.323,87045.0,87038.0,0.02714]
[1763969228124,0.323,87045.0,87038.0,0.02814]
[1763969228322,0.323,87045.0,87038.0,0.02714]
[1763969228759,0.323,87045.0,87038.0,0.02814]
[1763969228960,0.323,87047.0,87038.0,0.02714]
[1763969229165,0.323,87045.0,87038.0,0.02714]
[1763969229517,0.323,87045.0,87038.0,0.02814]
[1763969230227,0.323,87045.0,87038.0,0.001]
[1763969230378,2.333,87039.0,87038.0,0.001]
[1763969231180,0.0490003,87028.0,87019.0,0.02029]
[1763969231383,0.3720003,87028.0,87019.0,0.02040784]
[1763969231587,0.323,87028.0,87020.0,0.04331]
[1763969231787,0.323,87028.0,87027.0,0.02714]
[1763969232778,0.323,87032.0,87027.0,0.02714]
[1763969232985,0.323,87028.0,87027.0,0.07045]
[1763969233183,0.323,87028.0,87027.0,0.04331]
[1763969233397,0.323,87028.0,87027.0,0.07045]
[1763969233797,0.323,87028.0,87019.0,0.02040784]
[1763969233954,0.0490003,87028.0,87019.0,0.02040784]
[1763969234343,0.0490003,87028.0,87027.0,0.001]
[1763969234803,0.0490003,87028.0,87019.0,0.02040784]
[1763969235174,0.323,87029.0,87019.0,0.02140784]
[1763969235382,0.323,87027.0,87019.0,0.02040784]
[1763969235597,0.323,87027.0,87020.0,0.04331]
[1763969235789,0.323,87027.0,87026.0,0.02714]
[1763969236315,0.09768936,87035.0,87026.0,0.02714]
[1763969236519,0.323,87033.0,87026.0,0.07045]
[1763969236839,0.323,87033.0,87026.0,0.04331]
[1763969237036,2.0,87039.0,87032.0,0.02714]
[1763969237267,2.0,87039.0,87027.0,0.04331]
[1763969237418,2.0,87039.0,87038.0,0.04743]
[1763969237620,2.323,87039.0,87038.0,0.04743]
[1763969237991,2.323,87039.0,87038.0,0.09074]
[1763969238387,0.323,87039.0,87038.0,0.09074]
[1763969239822,0.323,87038.0,87027.0,0.00059831]
[1763969240028,0.323,87036.0,87019.0,0.06371784]
[1763969240223,0.323,87028.0,87019.0,0.06371784]
[1763969240481,0.323,87028.0,87020.0,0.04331]
[1763969240690,0.323,87028.0,87019.0,0.02040784]
[1763969240987,0.0490003,87027.0,87019.0,0.02040784]
[1763969241548,0.323,87028.0,87020.0,0.001]
[1763969241935,0.323,87028.0,87019.0,0.02040784]
[1763969242160,0.001,87027.0,87019.0,0.02040784]
[1763969242367,0.0490003,87021.0,87019.0,0.00011784]
[1763969243442,0.14668966,87020.0,87019.0,0.00011784]
[1763969243733,0.46968966,87020.0,87019.0,0.00011784]
[1763969245463,2.46968966,87020.0,87019.0,0.00011784]
[1763969245613,2.3720003,87020.0,87019.0,0.00011784]
[1763969245818,2.323,87020.0,87019.0,0.00096814]
[1763969248158,2.0,87028.0,87019.0,0.07141814]
[1763969248332,2.0,87028.0,87019.0,0.04342784]
[1763969248534,0.323,87023.0,87020.0,0.04331]
[1763969249066,0.323,87023.0,87022.0,0.04743]
[1763969249270,0.29409124,87023.0,87022.0,0.04743]
[1763969249473,0.29409124,87023.0,87022.0,0.09074]
[1763969249672,2.0,87028.0,87022.0,0.09074]
[1763969250448,2.0,87028.0,87027.0,0.02714]
[1763969250699,2.0,87033.0,87027.0,0.02714]
[1763969250903,2.0,87033.0,87027.0,0.04331]
[1763969251203,2.0,87036.0,87032.0,0.02714]
[1763969251434,0.323,87035.0,87033.0,0.04331]
[1763969251638,2.323,87034.0,87033.0,0.04331]
[1763969252002,2.323,87034.0,87033.0,0.07045]
[1763969252221,2.323,87034.0,87033.0,0.09074]
[1763969252403,0.323,87034.0,87033.0,0.09074]
[1763969253778,0.323,87034.0,87033.0,0.04743]
[1763969254237,0.323,87033.0,87022.0,0.02029]
[1763969254441,0.3720003,87033.0,87022.0,0.02029]
[1763969255341,0.42068936,87036.0,87022.0,0.02029]
[1763969255569,0.323,87034.0,87022.0,0.02029]
[1763969255742,0.323,87032.0,87023.0,0.03977]
[1763969255948,0.323,87032.0,87031.0,0.02742]
[1763969256160,0.323,87032.0,87031.0,0.04807]
[1763969256361,0.323,87032.0,87031.0,0.08784]
[1763969256741,0.323,87036.0,87031.0,0.08784]
[1763969256941,0.323,87032.0,87031.0,0.08784]
[1763969257953,0.59621988,87037.0,87031.0,0.08784]
[1763969258157,0.14979185,87064.0,87036.0,0.02742]
[1763969258158,0.59621988,87041.0,87036.0,0.02742]
[1763969258329,0.323,87039.0,87036.0,0.02742]
[1763969258543,0.323,87039.0,87031.0,0.02065]
[1763969258544,0.323,87039.0,87037.0,0.03977]
[1763969258913,0.323,87039.0,87038.0,0.02742]
[1763969259146,0.323,87039.0,87038.0,0.06719]
[1763969260097,0.323,87040.0,87038.0,0.06719]
[1763969260422,0.323,87040.0,87039.0,0.03977]
[1763969260563,0.323,87040.0,87039.0,0.06719]
[1763969261419,0.323,87046.0,87039.0,0.06719]
[1763969261652,0.323,87044.0,87039.0,0.02742]
[1763969262024,0.323,87044.0,87043.0,0.02742]
[1763969262177,0.323,87044.0,87031.0,0.02065]
[1763969262382,0.323,87044.0,87043.0,0.02742]
[1763969262862,0.59621988,87049.0,87031.0,0.02065]
[1763969262863,2.0,87047.0,87031.0,0.02065]
[1763969263065,0.59621988,87041.0,87031.0,0.06042]
[1763969263217,0.323,87044.0,87033.0,0.09768936]
[1763969263536,0.323,87044.0,87043.0,0.02742]
[1763969263895,0.59621988,87050.0,87043.0,0.06719]
[1763969264100,0.59621988,87050.0,87049.0,0.04807]
[1763969264285,0.91921988,87050.0,87049.0,0.04807]
[1763969264493,0.0309422,87086.0,87049.0,0.08784]
[1763969264697,2.0,87084.0,87072.0,0.02727]
[1763969264894,2.0,87081.0,87073.0,0.05222]
[1763969265093,0.01451,87073.0,87066.0,0.01902]
[1763969265320,0.01462764,87073.0,87066.0,0.01902]
[1763969265524,0.00011764,87073.0,87066.0,0.01902]
[1763969266575,0.00011764,87073.0,87066.0,0.02002]
[1763969269276,0.00011764,87073.0,87072.0,0.02727]
[1763969269692,0.00011764,87073.0,87072.0,0.06568]
[1763969270707,0.00011764,87073.0,87072.0,0.06668]
[1763969277637,0.43825794,87073.0,87072.0,0.001]
[1763969277842,2.43825794,87073.0,87072.0,0.001]
[1763969278252,2.34881764,87073.0,87072.0,0.001]
[1763969278452,2.34881764,87073.0,87060.0,0.03841]
[1763969278453,0.323,87072.0,87060.0,0.03841]
[1763969278682,0.323,87070.0,87060.0,0.03841]
[1763969282028,2.0,87072.0,87060.0,0.03841]
[1763969283220,0.87317183,87070.0,87060.0,0.03841]
[1763969284022,0.323,87069.0,87060.0,0.03841]
[1763969284244,0.323,87069.0,87055.0,0.01902]
[1763969284245,0.0490003,87067.0,87055.0,0.01902]
[1763969286141,0.323,87069.0,87055.0,0.01902]
[1763969286449,0.91349183,87070.0,87055.0,0.01902]
[1763969286450,0.323,87067.0,87055.0,0.01902]
[1763969286598,0.323,87067.0,87055.0,0.04199398]
[1763969286807,0.323,87067.0,87055.0,0.0575]
[1763969288494,0.323,87067.0,87056.0,0.03848]
[1763969288759,0.323,87069.0,87066.0,0.02482]
[1763969288929,0.00011764,87073.0,87069.0,0.02482]
[1763969289196,0.00011764,87073.0,87072.0,0.02482]
[1763969289401,0.68918283,87080.0,87072.0,0.02482]
[1763969289601,0.323,87077.0,87072.0,0.02482]
[1763969290110,0.323,87077.0,87073.0,0.03848]
[1763969291361,0.323,87081.0,87076.0,0.02482]
[1763969292509,0.323,87081.0,87074.0,0.01698]
[1763969293979,0.323,87081.0,87074.0,0.05546]
[1763969294383,0.323,87081.0,87074.0,0.01698]
[1763969295585,0.02559,87075.0,87067.0,0.01929]
[1763969295936,0.02559,87075.0,87067.0,0.00011764]
[1763969296060,0.04229,87068.0,87067.0,0.00011764]
[1763969297200,0.08261,87068.0,87067.0,0.00011764]
[1763969298017,0.04229,87068.0,87067.0,0.00011764]
[1763969299493,2.0,87073.0,87067.0,0.00011764]
[1763969300213,0.20850862,87074.0,87067.0,0.00011764]
[1763969300214,2.0490003,87068.0,87067.0,0.00011764]
[1763969300614,2.0,87073.0,87067.0,0.00011764]
[1763969300817,2.0,87071.0,87067.0,0.00011764]
[1763969301556,0.323,87068.0,87067.0,0.00011764]
[1763969301757,2.323,87068.0,87067.0,0.00011764]
[1763969302864,2.321585,87068.0,87067.0,0.00011764]
[1763969303407,2.321585,87068.0,87067.0,0.02493764]
[1763969303623,2.321585,87068.0,87067.0,0.06341764]
[1763969304024,2.0,87076.0,87067.0,0.06341764]
[1763969304248,2.0,87076.0,87068.0,0.03848]
[1763969304415,2.0,87076.0,87075.0,0.02482]
[1763969304622,2.0,87080.0,87075.0,0.02482]
[1763969304943,0.323,87077.0,87075.0,0.02482]
[1763969305163,0.323,87076.0,87075.0,0.02482]
[1763969306252,0.323,87075.0,87067.0,0.00011764]
[1763969306454,0.0490003,87068.0,87067.0,0.00011764]
[1763969306663,2.37270803,87068.0,87067.0,0.00011764]
[1763969307036,2.323,87068.0,87067.0,0.00011764]
[1763969307683,2.323,87068.0,87067.0,0.02493764]
[1763969308474,2.323,87068.0,87067.0,0.02593764]
[1763969308882,0.323,87068.0,87067.0,0.02593764]
[1763969309291,0.323,87068.0,87067.0,0.06441764]
[1763969309917,0.18176609,87068.0,87067.0,0.06441764]
[1763969316881,2.0,87076.0,87068.0,0.03999]
[1763969318784,0.323,87075.0,87068.0,0.03999]
[1763969320935,0.323,87076.0,87067.0,0.00011764]
[1763969321154,0.323,87072.0,87067.0,0.00011764]
[1763969321904,0.32284891,87072.0,87067.0,0.00011764]
[1763969322132,0.32284891,87072.0,87067.0,0.04010764]
[1763969323652,0.32284891,87072.0,87071.0,0.02755]
[1763969323806,0.323,87074.0,87071.0,0.02755]
[1763969324030,0.323,87072.0,87071.0,0.02755]
[1763969325079,0.323,87072.0,87067.0,0.04010764]
[1763969325080,0.323,87076.0,87067.0,0.04010764]
[1763969325299,0.323,87072.0,87067.0,0.00011764]
[1763969325494,0.323,87070.0,87067.0,0.00011764]
[1763969325705,0.323,87068.0,87067.0,0.00011764]
[1763969325925,2.323,87068.0,87067.0,0.00011764]
[1763969326151,2.67955376,87068.0,87067.0,0.00011764]
[1763969326354,2.71411266,87068.0,87067.0,0.00011764]
[1763969326567,2.71411266,87068.0,87031.0,0.02075]
[1763969326568,0.323,87048.0,87031.0,0.02075]
[1763969326775,0.323,87048.0,87026.0,0.02075]
[1763969326776,2.47039739,87039.0,87026.0,0.02075]
[1763969327436,2.323,87039.0,87033.0,0.02075]
[1763969328657,2.323,87039.0,87038.0,0.02752189]
[1763969330917,2.323,87039.0,87038.0,0.06699189]
[1763969331248,0.323,87039.0,87038.0,0.06699189]
[1763969332713,0.323,87039.0,87038.0,0.06799189]
[1763969340315,2.0,87047.0,87038.0,0.06799189]
[1763969340539,2.0,87047.0,87039.0,0.03947]
[1763969340773,2.0,87047.0,87046.0,0.02727]
[1763969341253,2.0,87047.0,87039.0,0.03947]
[1763969341766,2.0,87047.0,87038.0,0.00125189]
[1763969341767,0.09768936,87046.0,87038.0,0.00025189]
[1763969341981,2.0,87040.0,87038.0,0.00025189]
[1763969342213,2.37270803,87039.0,87038.0,0.00025189]
[1763969342635,2.323,87039.0,87038.0,0.00025189]
[1763969344632,2.48792934,87039.0,87038.0,0.00025189]
[1763969344847,2.37270803,87039.0,87038.0,0.00025189]
[1763969346711,2.37370803,87039.0,87038.0,0.00025189]
[1763969347207,2.39445803,87039.0,87038.0,0.00025189]
[1763969354034,2.001,87039.0,87038.0,0.06525189]
[1763969354240,0.001,87039.0,87038.0,0.06525189]
[1763969354642,0.001,87039.0,87038.0,0.02524189]
[1763969355276,0.001,87039.0,87038.0,0.06525189]
[1763969355480,0.323,87042.0,87038.0,0.06625189]
[1763969355650,0.323,87040.0,87038.0,0.06625189]
[1763969356029,0.323,87040.0,87039.0,0.01936]
[1763969356231,0.323,87040.0,87039.0,0.08436]
[1763969356409,0.323,87040.0,87039.0,0.01936]
[1763969356564,0.323,87040.0,87038.0,0.00125189]
[1763969356763,0.323,87041.0,87038.0,0.00025189]
[1763969356959,0.323,87041.0,87038.0,0.00125189]
[1763969357153,0.323,87041.0,87040.0,0.02499]
[1763969357358,2.0,87047.0,87040.0,0.02499]
[1763969357585,0.323,87046.0,87041.0,0.04001]
[1763969358011,0.323,87046.0,87045.0,0.04435]
[1763969358377,0.323,87046.0,87045.0,0.08436]
[1763969361040,4.503e-05,87048.0,87045.0,0.08436]
[1763969361278,4.503e-05,87048.0,87047.0,0.02499]
[1763969362104,4.503e-05,87048.0,87047.0,0.065]
[1763969365814,4.503e-05,87048.0,87045.0,0.01936]
[1763969367968,4.503e-05,87048.0,87038.0,0.00025189]
[1763969367969,0.323,87046.0,87038.0,0.00025189]
[1763969368173,2.323,87039.0,87038.0,0.00025189]
[1763969369224,2.37270803,87039.0,87038.0,0.00025189]
[1763969369435,2.323,87039.0,87038.0,0.02524189]
[1763969370238,2.323,87039.0,87038.0,0.06525189]
[1763969371046,2.323,87039.0,87038.0,0.06625189]
[1763969371259,2.323,87039.0,87038.0,0.06525189]
[1763969371496,2.323,87039.0,87038.0,0.06625189]
[1763969371775,0.323,87039.0,87038.0,0.06625189]
[1763969373691,2.0,87046.0,87038.0,0.06625189]
[1763969374055,2.0,87047.0,87045.0,0.04475]
[1763969374257,2.0,87047.0,87046.0,0.02464]
[1763969374473,2.0,87047.0,87046.0,0.06325]
[1763969374907,4.503e-05,87048.0,87046.0,0.06325]
[1763969375131,4.503e-05,87048.0,87047.0,0.06325]
[1763969378464,4.503e-05,87048.0,87047.0,0.06425]
[1763969384446,4.503e-05,87048.0,87047.0,0.06625]
[1763969384799,4.503e-05,87048.0,87047.0,0.06525]
[1763969385000,4.503e-05,87048.0,87047.0,0.06425]